Cogmind - Beta 12 @@@ ROGUE MODE // 2023.05.15 @ 19:07:02 Player: Shadow Pussy wanter Result: Destroyed by H-88 Terminator with Heavy Machine Gun Performance ------------- Evolutions (8) 4000 Regions Visited (25) 5000 Robots Destroyed (198) 990 Value Destroyed (10711) 10711 Prototype IDs (42) 840 Alien Tech Used (0) 0 Bonus (8774) 8774 TOTAL SCORE: 30315 Bonus ------- High Alert Combat Kills 681 Follower Combat Kills 869 Aligned with FarCom 300 Met Data Miner 300 Destroyed Z-Imprinter 1000 Triggered Deep Caves Wall 500 Exposed GOLEM Chamber 500 Met Warlord at Base 500 MAIN.C Attacked Warlord 500 Warlord Defense Kills 320 Met Warlord at Research 2000 Invited to Help at Command 2000 Friendly Fire -696 Cogmind --------- Core Integrity 0/1450 Matter 290/300 Energy 100/100 System Corruption 9% Temperature Cool (0) Movement Core (50) Location -2/Research Parts ------- > --- POWER (2) -------- (None) > --- PROPULSION (2) --- Assembled Alloy Leg > --- UTILITY (16) ----- GOLEM Unit > --- WEAPON (3) ------- (None) > --- INVENTORY (5) ---- GOLEM Unit Peak State ------------ > --- POWER ------------ Assembled Flux Generator > --- PROPULSION ------- Assembled Alloy Leg Assembled Alloy Leg > --- UTILITY ---------- Assembled Nanovents Assembled Nanovents Assembled Nanovents Assembled Nanovents High-capacity Storage Unit Assembled Biocell Array Assembled Biocell Array Assembled Suspension Frame Assembled Metafiber Network Advanced Signal Interpreter Assembled Combat Suite Assembled Alloy Armor Assembled Alloy Armor Assembled Alloy Armor GOLEM Unit > --- WEAPON ----------- Assembled Focal Cannon Assembled Focal Cannon Assembled Focal Cannon > --- INVENTORY -------- Micro Nuclear Core Micro Fission Core Micro Fission Core Micro Antimatter Reactor Quantum Reactor Enhanced Biometal Leg Advanced Cooling System Layered Medium Armor Plating Layered Heavy Armor Plating Advanced Thermal Shield System Purifier GOLEM Unit GOLEM Unit Enhanced Quantum Rifle Heavy Machine Gun Micro-nuke Launcher [Rating: 204] Favorites ----------- Power Assembled Flux Generator Engine Reinforced Deuterium Engine Power Core Light Nuclear Core Reactor Assembled Flux Generator Propulsion Assembled Alloy Leg Treads Medium Treads Leg Assembled Alloy Leg Wheel Wheel Utility Assembled Nanovents Device Assembled Nanovents Storage Assembled Biocell Array Processor Enhanced Optical Array Hackware Advanced Hacking Suite Protection Assembled Alloy Armor Weapon Assembled Focal Cannon Energy Gun Zionite Laser-S Energy Cannon Assembled Focal Cannon Ballistic Gun Assault Rifle Ballistic Cannon Flak Cannon Launcher Heavy Missile Launcher Special Weapon RU-N14's Throwing Claymores Impact Weapon Powered Hammer Build | -11 -10 -10 -10 -9 -8 -8 -7 -7 -7 -7 -7 -6 -6 -6 -6 -6 -5 -5 -5 -5 -5 -4 -4 -3 -2 ------- Run | Jun Mat Min Exi Min Mat Sto Fac Low Low Zio Dee Pro Fac Low Low Dat Pro Fac Upp Upp War Pro Fac Res Res Slots Evolved 16 | . . . . . 4 . 2 . . . . . 2 . . . . 2 . . . . 2 2 2 Power 1 | . . . . . . . . . . . . . 1 . . . . . . . . . . . . Propulsion . | . . . . . . . . . . . . . . . . . . . . . . . . . . Utility 14 | . . . . . 4 . 1 . . . . . 1 . . . . 2 . . . . 2 2 2 Weapon 1 | . . . . . . . 1 . . . . . . . . . . . . . . . . . . Parts Attached 187 | 6 14 9 5 3 13 4 5 2 16 7 50 5 8 2 1 1 1 4 . 1 7 1 4 7 11 Power 11 | 1 1 1 . 1 . 2 . . 1 . 1 . 1 . . . . . . . . . . . 2 Engine 7 | 1 1 1 . . . 2 . . 1 . . . 1 . . . . . . . . . . . . Core 1 | . . . . 1 . . . . . . . . . . . . . . . . . . . . . Reactor 3 | . . . . . . . . . . . 1 . . . . . . . . . . . . . 2 Propulsion 22 | 2 . 6 . 1 4 . . . 1 . 7 . . . . . . . . . . . . . 1 Treads 10 | 2 . 1 . . 4 . . . 1 . 2 . . . . . . . . . . . . . . Leg 10 | . . 3 . 1 . . . . . . 5 . . . . . . . . . . . . . 1 Wheel 2 | . . 2 . . . . . . . . . . . . . . . . . . . . . . . Hover . | . . . . . . . . . . . . . . . . . . . . . . . . . . Flight . | . . . . . . . . . . . . . . . . . . . . . . . . . . Utility 90 | 1 8 . 3 . 6 . 3 2 6 2 21 3 6 . . . 1 4 . 1 7 1 4 7 4 Device 42 | . 2 . 2 . 3 . . 1 5 1 6 1 4 . . . 1 2 . 1 5 1 3 2 2 Storage 16 | 1 3 . . . 1 . . . . 1 7 1 . . . . . 1 . . . . . 1 . Processor 6 | . . . . . 1 . 1 . . . . . 1 . . . . 1 . . . . . 2 . Hackware 3 | . . . . . . . 1 . . . . . 1 . . . . . . . . . . 1 . Protection 23 | . 3 . 1 . 1 . 1 1 1 . 8 1 . . . . . . . . 2 . 1 1 2 Artifact . | . . . . . . . . . . . . . . . . . . . . . . . . . . Weapon 64 | 2 5 2 2 1 3 2 2 . 8 5 21 2 1 2 1 1 . . . . . . . . 4 Energy Gun 12 | . . . . . . . . . . . 9 1 1 . . . . . . . . . . . 1 Energy Cannon 5 | . . . . 1 . 1 . . . . 3 . . . . . . . . . . . . . . Ballistic Gun 18 | 2 5 1 1 . . . 2 . 4 2 . . . . . . . . . . . . . . 1 Ballistic Cannon 3 | . . . . . 2 . . . 1 . . . . . . . . . . . . . . . . Launcher 10 | . . 1 . . . . . . 2 . 3 . . 1 1 1 . . . . . . . . 1 Special Weapon 10 | . . . 1 . . . . . . 2 4 1 . 1 . . . . . . . . . . 1 Impact Weapon 6 | . . . . . 1 1 . . 1 1 2 . . . . . . . . . . . . . . Slashing Weapon . | . . . . . . . . . . . . . . . . . . . . . . . . . . Piercing Weapon . | . . . . . . . . . . . . . . . . . . . . . . . . . . Special Melee Weapon . | . . . . . . . . . . . . . . . . . . . . . . . . . . Unidentified Prototypes 22 | . . . 2 . . 2 . . . 1 12 . . . . . . . . . 3 . . 1 1 Parts Lost 54 | . 1 2 . . . . . . 4 . 5 . 2 3 . . . . 1 1 . 1 1 3 30 Power 5 | . 1 . . . . . . . . . . . 1 . . . . . . . . . . . 3 Propulsion 8 | . . 2 . . . . . . 1 . 2 . . . . . . . . . . . . . 3 Utility 34 | . . . . . . . . . 2 . 3 . 1 3 . . . . 1 1 . 1 1 2 19 Weapon 7 | . . . . . . . . . 1 . . . . . . . . . . . . . . 1 5 Highest Loss Streak 17 | . 1 2 . . . . . . 4 . 3 . 1 1 . . . . 1 1 . 1 1 1 17 To Critical Strikes 1 | . . . . . . . . . . . . . . . . . . . . . . . . . 1 Average Slot Usage (%) 91 | . 98 99 100 100 94 100 96 100 97 89 94 99 89 86 86 72 86 87 84 88 87 88 88 89 85 Engine 3 | . 14 14 14 10 . 7 7 7 7 7 3 . 1 . . . . . . . . . . . . Reactor 3 | . . . . . . . . . . . 3 7 5 6 6 6 6 5 5 5 5 5 5 4 4 Treads 5 | . 28 6 . . 10 18 15 15 15 15 8 . . . . . . . . . . . . . . Leg 8 | . . 3 28 28 7 . . . . . 6 15 12 13 13 13 13 11 11 11 11 11 9 9 7 Device 16 | . 7 . . . 22 27 20 9 11 . 15 18 8 18 20 20 20 22 13 19 16 16 28 31 25 Storage 13 | . 14 14 14 14 9 9 7 7 7 12 21 24 20 14 13 13 13 11 11 11 11 11 10 9 12 Processor 7 | . . . . . 8 9 9 15 15 15 2 . 4 6 6 6 6 5 11 8 5 5 5 10 11 Hackware 3 | . . . . . . . 4 7 7 7 1 . 6 6 6 6 6 5 5 5 5 5 5 4 2 Protection 7 | . 5 14 14 14 9 9 7 12 8 7 8 9 7 . . . . 4 5 5 11 11 7 4 8 Energy Gun 2 | . . . . . . . . . . . 6 22 8 . . . . . . . . . . . . Energy Cannon 8 | . . . . 13 3 4 2 . . . 2 . 10 18 13 3 13 16 17 17 17 17 15 13 9 Ballistic Gun 5 | . 27 28 28 14 6 . 11 15 18 14 2 . . . . . . . . . . . . . . Ballistic Cannon 1 | . . . . . 6 10 7 7 3 7 1 . . . . . . . . . . . . . . Naked Turns 23 | . . . . . . . . . . . . . . . . . . . . . . . . . 23 Heaviest Build 150 | 13 34 34 32 39 60 53 57 57 60 62 67 64 109 109 109 101 102 136 135 136 143 143 148 146 150 Greatest Support 80 | 40 40 40 20 20 56 56 56 56 56 56 56 52 60 60 60 60 60 60 60 60 60 60 80 80 80 Greatest Overweight (x) 4 | 2 . 3 1 1 2 . 1 1 1 1 2 1 1 1 1 1 1 2 2 2 2 2 4 1 2 Average Overweight (x) 1 | . . . 1 1 . . . . . . . 1 1 1 1 1 1 1 2 2 2 2 1 1 1 Largest Inventory Capacity 20 | 8 15 15 15 15 15 15 15 15 15 15 15 15 15 15 15 15 15 20 20 20 20 20 20 20 20 Average Capacity 16 | 6 12 15 15 15 15 15 15 15 15 15 15 15 15 15 15 15 15 18 20 20 20 20 20 20 19 Most Carried 20 | 7 15 15 15 15 15 15 15 15 15 15 15 15 15 15 15 15 15 20 20 20 20 20 20 20 20 Average Carried 16 | 4 12 14 14 14 14 14 14 14 14 14 14 15 14 14 15 15 15 17 20 19 19 19 20 19 18 Final Capacity 20 | 8 15 15 15 15 15 15 15 15 15 15 15 15 15 15 15 15 15 20 20 20 20 20 20 20 5 Final Carried 20 | 7 15 15 15 15 15 15 15 15 12 15 15 15 15 15 15 15 15 20 20 20 20 20 20 20 2 Class Distribution -------------------- 49% | Golem 24% | Mutant 11% | Scavenger-Mutant 7% | Tank 5% | Scavenger-Tank Dominant Class ---------------- Mutant | -10/Materials Mutant | -10/Mines Mutant | -10/Exiles Mutant | -9/Mines Scavenger-Mutant | -8/Materials Mutant | -8/Storage Tank | -7/Factory Tank | -7/Lower Caves Scavenger-Tank | -7/Lower Caves Mutant | -7/Zion Scavenger-Mutant | -7/Deep Caves Scavenger-Tank | -6/Proximity Caves Golem | -6/Factory Golem | -6/Lower Caves Golem | -6/Lower Caves Golem | -6/Data Miner Golem | -5/Proximity Caves Golem | -5/Factory Golem | -5/Upper Caves Golem | -5/Upper Caves Golem | -5/Warlord Golem | -4/Proximity Caves Golem | -4/Factory Golem | -3/Research Golem | -2/Research Resources | -11 -10 -10 -10 -9 -8 -8 -7 -7 -7 -7 -7 -6 -6 -6 -6 -6 -5 -5 -5 -5 -5 -4 -4 -3 -2 ----------- Run | Jun Mat Min Exi Min Mat Sto Fac Low Low Zio Dee Pro Fac Low Low Dat Pro Fac Upp Upp War Pro Fac Res Res Matter Collected 4036 | 190 709 262 . 89 161 114 162 132 541 49 513 96 95 36 62 . 64 40 3 32 82 10 40 65 489 Remotely . | . . . . . . . . . . . . . . . . . . . . . . . . . . Salvage Created 9295 | 67 721 232 . 56 156 278 221 95 463 . 747 218 380 546 92 . 443 382 . . 110 238 591 1004 2255 Parts 459 | 5 41 19 . 3 9 19 11 10 22 . 15 9 22 9 9 . 20 18 . . 5 13 28 68 104 Haulers Intercepted 1 | . 1 . . . . . . . . . . . . . . . . . . . . . . . . Recyclers Shooed 5 | 1 2 1 . . 1 . . . . . . . . . . . . . . . . . . . . Parts Field Recycled . | . . . . . . . . . . . . . . . . . . . . . . . . . . Retrieved Matter . | . . . . . . . . . . . . . . . . . . . . . . . . . . Parts Self-Destructed 84 | . . . . . . . . 5 17 . . 8 . 9 7 . 26 . . . . 12 . . . Prevented . | . . . . . . . . . . . . . . . . . . . . . . . . . . Kills | -11 -10 -10 -10 -9 -8 -8 -7 -7 -7 -7 -7 -6 -6 -6 -6 -6 -5 -5 -5 -5 -5 -4 -4 -3 -2 ------- Run | Jun Mat Min Exi Min Mat Sto Fac Low Low Zio Dee Pro Fac Low Low Dat Pro Fac Upp Upp War Pro Fac Res Res Combat Hostiles Destroyed 212 | . 12 7 . 1 2 7 2 5 16 . 46 5 6 10 2 . 7 6 . . 2 3 9 13 51 Guns 36 | . 12 4 . . . . 2 2 8 . . 3 1 . . . . . . . . . . . 4 Cannons 101 | . . . . 1 2 7 . 3 1 . 3 . 5 7 1 . 7 5 . . 2 3 9 13 32 AOE 71 | . . 3 . . . . . . 7 . 40 2 . 3 1 . . . . . . . . . 15 Classes Destroyed 24 | 2 6 . . . 1 1 . 1 1 . 4 1 1 . . . 1 . . . 1 . . 1 3 Worker 2 | . 1 . . . 1 . . . . . . . . . . . . . . . . . . . . Builder 4 | . 1 1 . . 2 . . . . . . . . . . . . . . . . . . . . Tunneler 1 | 1 . . . . . . . . . . . . . . . . . . . . . . . . . Hauler 1 | . 1 . . . . . . . . . . . . . . . . . . . . . . . . Recycler 6 | 1 3 1 . . . . 1 . . . . . . . . . . . . . . . . . . Operator 1 | . . . . . . . . . . . . . . . . . . . . . . . . 1 . Drone 2 | . . . . . . . . . . . . 1 . . . . 1 . . . . . . . . Watcher 6 | . 2 . . . . . 1 . . . . . 1 . . . . 1 . . . . . 1 . Swarmer 39 | . 3 5 . . . . . 4 4 . . . . 1 . . . . . . . . . . 22 Grunt 41 | . 9 2 . 1 . 3 . . 6 . 1 3 . 6 . . 3 2 . . 1 . 3 . 1 Brawler 7 | . . . . . . . . . 4 . . . . 2 . . 1 . . . . . . . . Duelist 1 | . . . . . . . . . . . . . . . . . . . . . . . . . 1 Sentry 20 | . . . . . 2 3 1 . 1 . . 1 3 1 . . 1 2 . . . . 1 3 1 Demolisher 2 | . . . . . . . . . . . . . . . . . . . . . . . . . 2 Hunter 15 | . . . . . . 1 1 . . . . . . . 1 . . . . . . 2 . 2 8 Programmer 19 | . . . . . . . . . . . . . 3 . 1 . . 2 . . . . 5 8 . Behemoth 2 | . . . . . . . . . . . . . . . . . 1 . . . . 1 . . . Striker 13 | . . . . . . . . . . . . . . . . . . . . . 1 . . . 12 Executioner 4 | . . . . . . . . . . . . . . . . . . . . . . . . . 4 Z-Light 6 | . . . . . . . . . . . 6 . . . . . . . . . . . . . . Thief 2 | . . . . . . . . 1 1 . . . . . . . . . . . . . . . . Assembler 2 | . . . . . . . . . . . 2 . . . . . . . . . . . . . . Assembled 37 | . . . . . . . . . . . 37 . . . . . . . . . . . . . . Golem 3 | . . . . . . . . . . . 3 . . . . . . . . . . . . . . Thug 1 | . . . . . . . . . . . . . . . . . . . . . 1 . . . . Savage 1 | . . . . . . . . . . . . . . . . . . . . . . . . . 1 Best Kill Streak 38 | 1 6 3 . 1 3 3 3 4 6 . 38 3 1 7 1 . 2 2 . . 2 2 3 3 7 Combat Bots Only 36 | . 5 3 . 1 1 3 2 4 6 . 36 3 1 7 1 . 2 2 . . 2 2 3 3 7 Max Kills in Single Turn 21 | 1 1 3 . 1 1 1 1 1 2 . 21 2 1 2 1 . 1 1 . . 2 1 1 1 2 Gunslinging 1 | . . 1 . . . . . . . . . . . . . . . . . . . . . . . Exploded 21 | . . 3 . . . . . . 2 . 21 2 . 2 1 . . . . . . . . . 2 Melee . | . . . . . . . . . . . . . . . . . . . . . . . . . . Uniques/NPCs Destroyed 1 | . . . . . . . . . . . 1 . . . . . . . . . . . . . . Z-Imprinter (-7/Deep Caves) Combat | -11 -10 -10 -10 -9 -8 -8 -7 -7 -7 -7 -7 -6 -6 -6 -6 -6 -5 -5 -5 -5 -5 -4 -4 -3 -2 -------- Run | Jun Mat Min Exi Min Mat Sto Fac Low Low Zio Dee Pro Fac Low Low Dat Pro Fac Upp Upp War Pro Fac Res Res Damage Taken 14915 | . 497 369 . 56 17 210 61 136 732 . 1227 71 608 353 92 . 245 407 246 492 152 407 734 667 7136 Core 2390 | . 64 44 . . 6 33 12 . 32 . 206 10 111 94 . . 46 88 . 83 16 11 46 38 1450 Absorbed by Shields 131 | . . . . . 16 12 40 20 8 . . . . . . . . . . . 35 . . . . Redirected to Shielding 436 | . . . . . . . . . . . 277 18 72 . . . . . . . 30 39 . . . Regen/Repaired (Parts) 5 | . . . . . . . . . . . . . . . . . . . . . 5 . . . . Core Remaining (%) 81 | 100 . . . 56 . 92 . . . . . 62 . . . . 70 . . . . 80 96 97 . Volleys Fired 598 | 9 60 28 . 3 4 13 8 8 33 . 35 18 48 17 10 . 22 20 12 15 17 40 30 35 113 Largest 3 | 2 2 2 . 2 2 2 3 3 3 . 2 3 3 3 2 . 2 3 1 1 3 3 3 3 3 Hottest 180 | 40 40 40 . 100 83 124 100 100 100 . 124 180 180 75 50 . 50 75 25 25 75 75 75 75 115 Shots Fired 1140 | 18 119 55 . 6 7 26 24 24 70 . 49 50 83 45 18 . 44 47 12 15 30 58 55 70 215 Gun 416 | 18 119 54 . 3 3 . 16 16 48 . 12 48 51 . . . . . . . . . . . 28 Cannon 649 | . . . . 3 4 26 8 8 11 . 12 . 32 42 16 . 44 47 12 15 30 58 55 70 156 Launcher 48 | . . 1 . . . . . . 11 . 7 . . 1 2 . . . . . . . . . 26 Special 27 | . . . . . . . . . . . 18 2 . 2 . . . . . . . . . . 5 Kinetic 325 | 18 119 54 . 3 7 13 24 24 59 . . . . . . . . . . . . . . . 4 Thermal 661 | . . . . 3 . 13 . . . . . 32 44 42 16 . 44 47 12 15 30 58 55 70 180 Explosive 70 | . . 1 . . . . . . 11 . 25 2 . 3 2 . . . . . . . . . 26 Electromagnetic 24 | . . . . . . . . . . . 24 . . . . . . . . . . . . . . Phasic 55 | . . . . . . . . . . . . 16 39 . . . . . . . . . . . . Robot Hit Streak 26 | 7 16 10 . 2 7 22 15 3 9 . 8 8 16 18 3 . 17 25 . . 5 11 9 26 15 Robot Miss Streak 11 | 3 2 3 . 1 2 3 6 9 11 . 3 5 1 1 1 . 1 2 . . 2 1 4 2 4 Penetration Max . | . . . . . . . . . . . . . . . . . . . . . . . . . . Secondary Targets 1 | . . 1 . . . . . . . . . . . . . . . . . . . . . . . Max Gunslinging Chain 1 | . . 1 . . . . . . . . . . . . . . . . . . . . . . . Shots Hit Robots 626 | 10 85 34 . 3 7 24 15 11 45 . 27 6 27 22 5 . 24 33 . . 16 22 34 49 127 Core Hits 418 | 3 32 13 . 2 8 19 11 12 52 . 74 7 8 12 1 . 11 7 . . 3 7 13 22 101 Critical Kills 3 | . 1 . . . . . 1 . 1 . . . . . . . . . . . . . . . . Critical Parts Destroyed 1 | . . . . . . . . . 1 . . . . . . . . . . . . . . . . Critical Strikes 9 | . 1 . . . . . 2 . 2 . 3 . . 1 . . . . . . . . . . . Destroy 5 | . 1 . . . . . 2 . 2 . . . . . . . . . . . . . . . . Corrupt 1 | . . . . . . . . . . . 1 . . . . . . . . . . . . . . Sever 3 | . . . . . . . . . . . 2 . . 1 . . . . . . . . . . . Melee Attacks 16 | . . . . . 5 4 . . 3 1 3 . . . . . . . . . . . . . . Impact 16 | . . . . . 5 4 . . 3 1 3 . . . . . . . . . . . . . . Slashing . | . . . . . . . . . . . . . . . . . . . . . . . . . . Piercing . | . . . . . . . . . . . . . . . . . . . . . . . . . . Sneak Attacks 4 | . . . . . 3 1 . . . . . . . . . . . . . . . . . . . Combat Hostiles . | . . . . . . . . . . . . . . . . . . . . . . . . . . Follow-up Attacks . | . . . . . . . . . . . . . . . . . . . . . . . . . . Damage Inflicted 31204 | 118 1146 601 . 53 381 619 275 192 1546 . 5011 487 1175 1400 351 . 1047 1575 . . 1060 956 1709 2532 8970 Guns 3521 | 118 1096 420 . 26 13 . 193 112 565 . 101 153 305 . . . . . . . . . . . 419 Cannons 17181 | . . . . 27 79 530 82 80 155 . 217 . 869 960 262 . 1047 1575 . . 1060 956 1709 2532 5041 Explosions 9574 | . . 153 . . . . . . 826 . 4316 304 . 376 89 . . . . . . . . . 3510 Melee 371 | . . . . . 289 82 . . . . . . . . . . . . . . . . . . . Ramming 86 | . 50 28 . . . 7 . . . . . . 1 . . . . . . . . . . . . Kinetic 3250 | 118 1096 420 . 26 92 224 275 192 720 . . . . . . . . . . . . . . . 87 Thermal 17055 | . . . . 27 . 306 . . . . 119 87 1042 960 262 . 1047 1575 . . 1060 956 1709 2532 5373 Explosive 9455 | . . 153 . . . . . . 826 . 4197 304 . 376 89 . . . . . . . . . 3510 Electromagnetic 318 | . . . . . . . . . . . 318 . . . . . . . . . . . . . . Impact 371 | . . . . . 289 82 . . . . . . . . . . . . . . . . . . . Slashing 471 | . . . . . . . . . . . 377 30 . 64 . . . . . . . . . . . Piercing . | . . . . . . . . . . . . . . . . . . . . . . . . . . Phasic 198 | . . . . . . . . . . . . 66 132 . . . . . . . . . . . . Highest Corruption 9 | . . . . . . . . . . . . . 2 6 7 7 7 1 1 1 1 . 1 1 9 Average Corruption 2 | . . . . . . . . . . . . . 2 2 6 7 7 1 1 1 1 . 1 1 9 Corruption Purged 2 | . . . . . . . . . . . . . . . . . . . . . . . . 2 . Corruption Blocked 75 | . . . . . . . . . . . . . . . . . . . . . 11 . . . 64 Effects 91 | . . . . . . . . . . . . . 19 7 13 10 19 1 6 12 1 . . . 3 Message Errors 22 | . . . . . . . . . . . . . 5 1 2 3 4 1 2 3 1 . . . . Matter Fused 20 | . . . . . . . . . . . . . 3 1 3 3 4 . 2 4 . . . . . Heat Flow Errors 11 | . . . . . . . . . . . . . 2 . 2 1 3 . 1 1 . . . . 1 Energy Discharges 14 | . . . . . . . . . . . . . 4 3 . 3 2 . . 1 . . . . 1 Parts Rejected 1 | . . . . . . . . . . . . . . . 1 . . . . . . . . . . Parts Fused 1 | . . . . . . . . . . . . . . . . . . . . 1 . . . . . Data Loss (minor) 12 | . . . . . . . . . . . . . 3 1 3 . 4 . . . . . . . 1 Data Loss (major) 6 | . . . . . . . . . . . . . 1 . 2 . 1 . . 2 . . . . . Misfires 2 | . . . . . . . . . . . . . 1 1 . . . . . . . . . . . Alerts 2 | . . . . . . . . . . . . . . . . . 1 . 1 . . . . . . Overload Shots . | . . . . . . . . . . . . . . . . . . . . . . . . . . Overflow Damage 1175 | . . . . . 184 22 . . 48 . 160 46 69 89 82 . . 70 . . 30 . 168 103 104 Projectiles 741 | . . . . . . . . . . . 57 . 69 89 82 . . 70 . . 30 . 168 103 73 Explosions 228 | . . . . . . . . . 48 . 103 46 . . . . . . . . . . . . 31 Melee 206 | . . . . . 184 22 . . . . . . . . . . . . . . . . . . . Knockbacks 18 | . . . . . 5 3 4 3 3 . . . . . . . . . . . . . . . . Impact 2 | . . . . . 2 . . . . . . . . . . . . . . . . . . . . Kinetic 15 | . . . . . 2 3 4 3 3 . . . . . . . . . . . . . . . . Secondary 1 | . . . . . 1 . . . . . . . . . . . . . . . . . . . . Self-Inflicted Damage 251 | . . 15 . . . . . . 53 . 18 . . . 30 . . . . . . . . . 135 Shots 7 | . . 1 . . . . . . 2 . 1 . . . 1 . . . . . . . . . 2 Rammed 9 | . 5 2 . . . 2 . . . . . . . . . . . . . . . . . . . Targets Rammed 13 | . 8 2 . . . 2 . . . . . . 1 . . . . . . . . . . . . Kicked 1 | . . . . . . . . . . . . . 1 . . . . . . . . . . . . Crushed 3 | . 3 . . . . . . . . . . . . . . . . . . . . . . . . Highest Temperature 232 | . 25 112 . 180 . 93 7 135 131 . 9 108 206 . 228 147 232 . 176 84 . . . . 143 Average Temperature 54 | . 7 65 . 92 . 37 5 55 56 . 6 43 62 . 111 88 100 . 117 54 . . . . 94 Received Heat Transfer 1479 | . 270 192 . 33 . 54 11 . 198 . 155 42 54 93 . . 45 108 . 24 . . 182 18 . Siege Activations . | . . . . . . . . . . . . . . . . . . . . . . . . . . Robots Corrupted 3 | . . . . . . . . . . . 3 . . . . . . . . . . . . . . Combat Hostiles 3 | . . . . . . . . . . . 3 . . . . . . . . . . . . . . Parts Fried 6 | . . . . . 6 . . . . . . . . . . . . . . . . . . . . Impact Corruptions 8 | . . . . . 7 1 . . . . . . . . . . . . . . . . . . . Robots Melted 1 | . . . . . . . . . . . . . . . . . . 1 . . . . . . . Combat Hostiles 1 | . . . . . . . . . . . . . . . . . . 1 . . . . . . . Parts Melted 10 | . . . . . . . . . . . 1 . 2 1 . . 1 1 . . . . 1 1 2 Heat Transferred 9908 | . . . . 50 . 600 . . . . 50 111 647 500 100 . 600 850 . . 562 550 850 1225 3213 Parts Sabotaged . | . . . . . . . . . . . . . . . . . . . . . . . . . . Parts Stolen 3 | . . . . . . . . . 3 . . . . . . . . . . . . . . . . Parts Stripped . | . . . . . . . . . . . . . . . . . . . . . . . . . . Power Chain Reactions 1 | . . . . . . . . . . . 1 . . . . . . . . . . . . . . Missiles Intercepted . | . . . . . . . . . . . . . . . . . . . . . . . . . . Alert | -11 -10 -10 -10 -9 -8 -8 -7 -7 -7 -7 -7 -6 -6 -6 -6 -6 -5 -5 -5 -5 -5 -4 -4 -3 -2 ------- Run | Jun Mat Min Exi Min Mat Sto Fac Low Low Zio Dee Pro Fac Low Low Dat Pro Fac Upp Upp War Pro Fac Res Res Peak Influence 924 | 10 272 260 . 33 62 227 182 . . . . . 643 . . . . 276 . . . . 143 142 924 Initial 621 | . 6 64 . . 12 26 49 . . . . . 621 . . . . 89 . . . . . 31 6 Average 113 | 3 104 157 . 7 22 76 69 . . . . . 106 . . . . 172 . . . . 38 49 220 Maximum Alert Level 3 | . 1 1 . . . 1 . . . . . . 2 . . . . 1 . . . . . . 3 Low Security (%) 81 | 100 90 75 . 100 100 95 100 . . . . . 80 . . . . 63 . . . . 100 100 53 Level 1 13 | . 9 25 . . . 4 . . . . . . 10 . . . . 36 . . . . . . 33 Level 2 2 | . . . . . . . . . . . . . 8 . . . . . . . . . . . 4 Level 3 2 | . . . . . . . . . . . . . . . . . . . . . . . . . 8 Level 4 . | . . . . . . . . . . . . . . . . . . . . . . . . . . Level 5 . | . . . . . . . . . . . . . . . . . . . . . . . . . . High Security . | . . . . . . . . . . . . . . . . . . . . . . . . . . Max Security . | . . . . . . . . . . . . . . . . . . . . . . . . . . Squads Dispatched 30 | . 4 . . 1 . 2 2 . 1 . . . 5 . . . . 5 . . . . 3 7 . Investigation 6 | . 2 . . 1 . . . . . . . . 2 . . . . . . . . . . 1 . Extermination 13 | . . . . . . . . . . . . . 3 . . . . 2 . . . . 3 5 . Reinforcement 5 | . 2 . . . . 1 1 . . . . . . . . . . . . . . . . 1 . Assault 1 | . . . . . . . . . 1 . . . . . . . . . . . . . . . . Garrison 5 | . . . . . . 1 1 . . . . . . . . . . 3 . . . . . . . Intercept . | . . . . . . . . . . . . . . . . . . . . . . . . . . Searches Triggered . | . . . . . . . . . . . . . . . . . . . . . . . . . . Construction Impeded . | . . . . . . . . . . . . . . . . . . . . . . . . . . Haulers Reinforced . | . . . . . . . . . . . . . . . . . . . . . . . . . . Active Scanning Responses . | . . . . . . . . . . . . . . . . . . . . . . . . . . Cargo Convoy Interrupts . | . . . . . . . . . . . . . . . . . . . . . . . . . . Stealth | -11 -10 -10 -10 -9 -8 -8 -7 -7 -7 -7 -7 -6 -6 -6 -6 -6 -5 -5 -5 -5 -5 -4 -4 -3 -2 --------- Run | Jun Mat Min Exi Min Mat Sto Fac Low Low Zio Dee Pro Fac Low Low Dat Pro Fac Upp Upp War Pro Fac Res Res Distress Signals 6 | . 1 . . . 2 . . . . . . . . . . . . . . . 1 . . . 2 Communications Jammed . | . . . . . . . . . . . . . . . . . . . . . . . . . . Distress Signals . | . . . . . . . . . . . . . . . . . . . . . . . . . . Times Spotted 371 | . 20 10 . 2 9 14 5 7 22 . 53 5 8 10 2 . 10 11 1 1 57 3 14 13 94 Peak Tracking Total 37 | . 4 3 . 2 6 4 1 4 10 . 37 3 2 7 1 . 4 5 1 1 12 2 4 3 7 Tactical Retreats 15 | . 2 1 . . . . . 1 1 . . . . . . . . . 1 1 2 . . . 6 Traps | -11 -10 -10 -10 -9 -8 -8 -7 -7 -7 -7 -7 -6 -6 -6 -6 -6 -5 -5 -5 -5 -5 -4 -4 -3 -2 ------- Run | Jun Mat Min Exi Min Mat Sto Fac Low Low Zio Dee Pro Fac Low Low Dat Pro Fac Upp Upp War Pro Fac Res Res Traps Triggered 7 | . 4 . . . . . . . . . . . . . . . . 1 . . . . . 2 . Indirectly . | . . . . . . . . . . . . . . . . . . . . . . . . . . Trap Hack Attempts . | . . . . . . . . . . . . . . . . . . . . . . . . . . Triggered . | . . . . . . . . . . . . . . . . . . . . . . . . . . Disarmed 1 | . 1 . . . . . . . . . . . . . . . . . . . . . . . . Reprogrammed . | . . . . . . . . . . . . . . . . . . . . . . . . . . Reused . | . . . . . . . . . . . . . . . . . . . . . . . . . . Traps Extracted . | . . . . . . . . . . . . . . . . . . . . . . . . . . Installed . | . . . . . . . . . . . . . . . . . . . . . . . . . . Triggered 22 | . . . . . . . . . . . . . . 1 . . . . . . 21 . . . . Machines | -11 -10 -10 -10 -9 -8 -8 -7 -7 -7 -7 -7 -6 -6 -6 -6 -6 -5 -5 -5 -5 -5 -4 -4 -3 -2 ---------- Run | Jun Mat Min Exi Min Mat Sto Fac Low Low Zio Dee Pro Fac Low Low Dat Pro Fac Upp Upp War Pro Fac Res Res Machines Disabled 7 | . . 1 . . . 2 . . . . 2 . 2 . . . . . . . . . . . . Max in Single Turn 1 | . . 1 . . . 1 . . . . 1 . 1 . . . . . . . . . . . . Garrison Access 3 | . . . . . . 1 . . . . . . . . . . . . . . . . . . 2 Machines Repaired . | . . . . . . . . . . . . . . . . . . . . . . . . . . Machines Sabotaged . | . . . . . . . . . . . . . . . . . . . . . . . . . . Overloaded Fab Kills . | . . . . . . . . . . . . . . . . . . . . . . . . . . Hacking | -11 -10 -10 -10 -9 -8 -8 -7 -7 -7 -7 -7 -6 -6 -6 -6 -6 -5 -5 -5 -5 -5 -4 -4 -3 -2 --------- Run | Jun Mat Min Exi Min Mat Sto Fac Low Low Zio Dee Pro Fac Low Low Dat Pro Fac Upp Upp War Pro Fac Res Res Machines Accessed 31 | . 4 . . 1 3 4 1 . . 1 . . 5 . 1 3 . . . . 2 . 3 2 1 Terminals 19 | . 4 . . . 3 3 1 . . . . . 4 . . . . . . . . . 2 2 . Fabricators 2 | . . . . . . . . . . . . . 1 . . . . . . . . . 1 . . Repair Stations . | . . . . . . . . . . . . . . . . . . . . . . . . . . Recycling Units . | . . . . . . . . . . . . . . . . . . . . . . . . . . Scanalyzers . | . . . . . . . . . . . . . . . . . . . . . . . . . . Garrison Access 2 | . . . . . . 1 . . . . . . . . . . . . . . . . . . 1 Total Hacks 97 | . 17 . . 1 7 14 1 . . 2 . . 17 . 1 24 . . . . 3 . 5 4 1 Successful 58 | . 7 . . 1 2 6 . . . 2 . . 8 . 1 24 . . . . 3 . 3 1 . Failed 39 | . 10 . . . 5 8 1 . . . . . 9 . . . . . . . . . 2 3 1 Catastrophic 10 | . 3 . . . . 1 1 . . . . . 1 . . . . . . . . . 1 2 1 Database Lockouts . | . . . . . . . . . . . . . . . . . . . . . . . . . . Manual 54 | . 15 . 1 . 6 10 1 . . 5 . . 8 . . . . . . . 1 . 4 3 . Terminals 59 | . 17 . . . 7 12 1 . . . . . 14 . . . . . . . . . 4 4 . Fabricators 4 | . . . . . . . . . . . . . 3 . . . . . . . . . 1 . . Repair Stations . | . . . . . . . . . . . . . . . . . . . . . . . . . . Recycling Units . | . . . . . . . . . . . . . . . . . . . . . . . . . . Scanalyzers . | . . . . . . . . . . . . . . . . . . . . . . . . . . Garrison Access 3 | . . . . . . 2 . . . . . . . . . . . . . . . . . . 1 Terminal Hacks 42 | . 3 . . 1 1 3 . . . 2 . . 4 . 1 24 . . . . 3 . . . . Record 8 | . . . . . . . . . . . . . . . . 6 . . . . 2 . . . . Part Schematic 13 | . . . . . . 1 . . . 2 . . . . . 10 . . . . . . . . . Robot Schematic 5 | . . . . . . . . . . . . . . . . 5 . . . . . . . . . Robot Analysis 2 | . 2 . . . . . . . . . . . . . . . . . . . . . . . . Prototype ID Bank 4 | . . . . . 1 . . . . . . . . . . 3 . . . . . . . . . Open Door 3 | . . . . 1 . . . . . . . . . . 1 . . . . . 1 . . . . Alert Level 2 | . . . . . . 1 . . . . . . 1 . . . . . . . . . . . . Unreport Threat 3 | . . . . . . . . . . . . . 3 . . . . . . . . . . . . Disarm Traps 1 | . 1 . . . . . . . . . . . . . . . . . . . . . . . . Zone Layout 1 | . . . . . . 1 . . . . . . . . . . . . . . . . . . . Fabricator Hacks 4 | . . . . . . . . . . . . . 3 . . . . . . . . . 1 . . Network Status 2 | . . . . . . . . . . . . . 1 . . . . . . . . . 1 . . Load Schematic 2 | . . . . . . . . . . . . . 2 . . . . . . . . . . . . Repair Station Hacks . | . . . . . . . . . . . . . . . . . . . . . . . . . . Recycling Unit Hacks . | . . . . . . . . . . . . . . . . . . . . . . . . . . Scanalyzer . | . . . . . . . . . . . . . . . . . . . . . . . . . . Garrison Access Hacks 1 | . . . . . . 1 . . . . . . . . . . . . . . . . . . . Seal Access 1 | . . . . . . 1 . . . . . . . . . . . . . . . . . . . Unauthorized Hacks 11 | . 4 . . . 1 2 . . . . . . 1 . . . . . . . . . 2 1 . Terminals 11 | . 4 . . . 1 2 . . . . . . 1 . . . . . . . . . 2 1 . Assimilate 1 | . 1 . . . . . . . . . . . . . . . . . . . . . . . . Botnet 10 | . 3 . . . 1 2 . . . . . . 1 . . . . . . . . . 2 1 . Fabricators . | . . . . . . . . . . . . . . . . . . . . . . . . . . Repair Stations . | . . . . . . . . . . . . . . . . . . . . . . . . . . Recycling Units . | . . . . . . . . . . . . . . . . . . . . . . . . . . Scanalyzers . | . . . . . . . . . . . . . . . . . . . . . . . . . . Garrison Access . | . . . . . . . . . . . . . . . . . . . . . . . . . . Data Cores Recovered . | . . . . . . . . . . . . . . . . . . . . . . . . . . Used . | . . . . . . . . . . . . . . . . . . . . . . . . . . Hacking Detections 22 | . 4 . . . 3 3 1 . . . . . 5 . . . . . . . . . 3 2 1 Full Trace Events 3 | . . . . . . . . . . . . . 2 . . . . . . . . . . 1 . Feedback Events 2 | . . . . . . . . . . . . . . . . . . . . . . . . 2 . Corruption 1 | . . . . . . . . . . . . . . . . . . . . . . . . 1 . Hackware Fried 1 | . . . . . . . . . . . . . . . . . . . . . . . . 1 . Feedback Blocked . | . . . . . . . . . . . . . . . . . . . . . . . . . . Robot Schematics Acquired 8 | . . . . . . . . . . 3 . . . . . 5 . . . . . . . . . Robots Built . | . . . . . . . . . . . . . . . . . . . . . . . . . . Authchips . | . . . . . . . . . . . . . . . . . . . . . . . . . . Time . | . . . . . . . . . . . . . . . . . . . . . . . . . . Total Robot Build Rating . | . . . . . . . . . . . . . . . . . . . . . . . . . . Part Schematics Acquired 29 | . . . . . . 1 . . . 18 . . . . . 10 . . . . . . . . . Parts Built . | . . . . . . . . . . . . . . . . . . . . . . . . . . Authchips . | . . . . . . . . . . . . . . . . . . . . . . . . . . Time . | . . . . . . . . . . . . . . . . . . . . . . . . . . Total Part Build Rating . | . . . . . . . . . . . . . . . . . . . . . . . . . . Parts Repaired . | . . . . . . . . . . . . . . . . . . . . . . . . . . Time . | . . . . . . . . . . . . . . . . . . . . . . . . . . Parts Recycled . | . . . . . . . . . . . . . . . . . . . . . . . . . . Recycled Matter . | . . . . . . . . . . . . . . . . . . . . . . . . . . Retrieved Matter . | . . . . . . . . . . . . . . . . . . . . . . . . . . Retrieved Components . | . . . . . . . . . . . . . . . . . . . . . . . . . . Parts Scanalyzed . | . . . . . . . . . . . . . . . . . . . . . . . . . . Part Schematics Acquired . | . . . . . . . . . . . . . . . . . . . . . . . . . . Parts Damaged . | . . . . . . . . . . . . . . . . . . . . . . . . . . Bothacking | -11 -10 -10 -10 -9 -8 -8 -7 -7 -7 -7 -7 -6 -6 -6 -6 -6 -5 -5 -5 -5 -5 -4 -4 -3 -2 ------------ Run | Jun Mat Min Exi Min Mat Sto Fac Low Low Zio Dee Pro Fac Low Low Dat Pro Fac Upp Upp War Pro Fac Res Res Used RIF Installer . | . . . . . . . . . . . . . . . . . . . . . . . . . . Robots Hacked . | . . . . . . . . . . . . . . . . . . . . . . . . . . Non-combat . | . . . . . . . . . . . . . . . . . . . . . . . . . . Combat . | . . . . . . . . . . . . . . . . . . . . . . . . . . Robot Hacks Applied . | . . . . . . . . . . . . . . . . . . . . . . . . . . Relay Couplers Released 17 | . . . . . . . . . . . . . . . . . . . . . . . . 3 14 Machine Destruction 3 | . . . . . . . . . . . . . . . . . . . . . . . . . 3 Programmers 14 | . . . . . . . . . . . . . . . . . . . . . . . . 3 11 Fabnet Peak Effective % . | . . . . . . . . . . . . . . . . . . . . . . . . . . Robots Rewired 9 | . . . . . . . . . 2 . . . . 2 . . . . . . 5 . . . . Allies Hacked . | . . . . . . . . . . . . . . . . . . . . . . . . . . Hacks Repelled . | . . . . . . . . . . . . . . . . . . . . . . . . . . Allies | -11 -10 -10 -10 -9 -8 -8 -7 -7 -7 -7 -7 -6 -6 -6 -6 -6 -5 -5 -5 -5 -5 -4 -4 -3 -2 -------- Run | Jun Mat Min Exi Min Mat Sto Fac Low Low Zio Dee Pro Fac Low Low Dat Pro Fac Upp Upp War Pro Fac Res Res Total Allies 25 | . . 3 . . . . . . 2 5 . . . 2 . . 1 3 . . 5 . . . 4 Largest Group 7 | . . 3 2 2 . . . . 2 7 7 . . 2 2 1 2 5 . . 5 . . . 3 Highest-Rated Group 291 | . . 40 32 32 . . . . 32 291 291 . . 61 61 32 128 221 . . 252 . . . 277 Highest-Rated Ally 99 | . . 16 16 16 . . . . 16 96 96 . . 32 32 32 96 96 . . 65 . . . 99 Total Orders . | . . . . . . . . . . . . . . . . . . . . . . . . . . Ally Attacks 198 | . . 10 . 2 . . . . 10 . 82 . . . 3 . 21 27 . . 10 . . . 33 Total Damage 5041 | . . 138 . 18 . . . . 57 . 1673 . . . 48 . 492 1257 . . 416 . . . 942 Kills 27 | . . 3 . 1 . . . . . . 7 . . . . . 4 7 . . 2 . . . 3 Allies Corrupted . | . . . . . . . . . . . . . . . . . . . . . . . . . . Allies Melted 2 | . . . . . . . . . . . . . . . . . . 1 . . 1 . . . . Field Lobotomies 4 | . . . . . . . . . . . . . . . . . . . . . . . . . 4 Intel | -11 -10 -10 -10 -9 -8 -8 -7 -7 -7 -7 -7 -6 -6 -6 -6 -6 -5 -5 -5 -5 -5 -4 -4 -3 -2 ------- Run | Jun Mat Min Exi Min Mat Sto Fac Low Low Zio Dee Pro Fac Low Low Dat Pro Fac Upp Upp War Pro Fac Res Res Robot Analysis Total 2 | . 2 . . . . . . . . . . . . . . . . . . . . . . . . Derelict Logs Recovered 17 | . . 2 . 2 . . . 2 2 1 . 2 . 1 . . . . . 2 . 3 . . . Drone Launches . | . . . . . . . . . . . . . . . . . . . . . . . . . . Drone Recoveries . | . . . . . . . . . . . . . . . . . . . . . . . . . . Exploration | -11 -10 -10 -10 -9 -8 -8 -7 -7 -7 -7 -7 -6 -6 -6 -6 -6 -5 -5 -5 -5 -5 -4 -4 -3 -2 ------------- Run | Jun Mat Min Exi Min Mat Sto Fac Low Low Zio Dee Pro Fac Low Low Dat Pro Fac Upp Upp War Pro Fac Res Res Turns Passed 31126 | 121 1583 692 550 676 679 537 406 696 1297 2083 3518 759 2076 492 448 273 711 758 734 1620 1587 1147 1647 2255 3781 Spaces Moved 13108 | 55 769 492 283 340 289 277 183 317 479 1007 1566 316 708 232 229 96 347 285 339 756 636 420 483 703 1501 Core 58 | 14 . . . . . . . . . . . . . . . . . . . . . . . . 44 Treads 4079 | 41 769 65 . . 171 277 183 317 479 1007 770 . . . . . . . . . . . . . . Legs 8565 | . . 21 283 340 118 . . . . . 796 316 708 232 229 96 347 285 339 756 636 420 483 703 1457 Wheels 406 | . . 406 . . . . . . . . . . . . . . . . . . . . . . . Hover . | . . . . . . . . . . . . . . . . . . . . . . . . . . Flight . | . . . . . . . . . . . . . . . . . . . . . . . . . . Fastest Speed 50 | 50 160 95 190 190 160 160 160 160 160 160 115 200 180 180 180 180 180 180 210 210 210 210 180 180 50 Average Speed 189 | 142 160 113 190 190 194 160 183 209 207 204 211 200 188 180 180 180 180 199 210 210 210 210 188 180 171 Slowest Speed 330 | 160 160 330 190 190 320 160 240 240 240 240 310 200 200 180 180 180 180 210 210 210 210 210 270 180 225 Overloaded Moves . | . . . . . . . . . . . . . . . . . . . . . . . . . . Propulsion Burnouts . | . . . . . . . . . . . . . . . . . . . . . . . . . . Robots Hopped . | . . . . . . . . . . . . . . . . . . . . . . . . . . Cave-ins Triggered 7 | . . . . . . . . . . . . . 1 1 . . . . 1 1 . . . . 3 Exploration Rate (%) 50 | 5 88 90 69 69 23 46 5 46 59 85 77 51 19 43 53 75 54 9 58 83 79 49 13 15 44 Regions Visited 25 Branch Regions 17 Pre-discovered Areas 6 | . . 1 . 1 . . . 1 1 . . . . . . 1 . . . . . 1 . . . Known Exits Taken 11 | . . . . . 1 1 1 1 1 1 . . . . . . 1 1 1 . . 1 . 1 . Unknown Exits Taken 14 | 1 1 1 1 1 . . . . . . 1 1 1 1 1 1 . . . 1 1 . 1 . . Scrap Searched 22 | . . 2 . 1 . . . 2 3 3 . 1 . 3 2 . 1 . . 3 . 1 . . . Spaces Dug 113 | . . . . . 2 1 . . 2 . . 33 27 6 4 . 6 3 3 4 . 6 7 9 . Terrain Destroyed 646 | . . 6 . 2 2 2 . 2 68 . 115 68 51 59 28 . 20 13 12 15 . 35 19 19 110 Melee 5 | . . . . . 2 1 . . 2 . . . . . . . . . . . . . . . . Projectile 292 | . . . . 2 . 1 . 2 2 . 3 40 51 22 12 . 20 13 12 15 . 35 19 19 24 AOE 349 | . . 6 . . . . . . 64 . 112 28 . 37 16 . . . . . . . . . 86 Terrain Rammed . | . . . . . . . . . . . . . . . . . . . . . . . . . . Walls Destroyed . | . . . . . . . . . . . . . . . . . . . . . . . . . . Machines Disabled . | . . . . . . . . . . . . . . . . . . . . . . . . . . Actions | -11 -10 -10 -10 -9 -8 -8 -7 -7 -7 -7 -7 -6 -6 -6 -6 -6 -5 -5 -5 -5 -5 -4 -4 -3 -2 --------- Run | Jun Mat Min Exi Min Mat Sto Fac Low Low Zio Dee Pro Fac Low Low Dat Pro Fac Upp Upp War Pro Fac Res Res Total 18375 | 79 1011 574 296 368 391 337 238 331 713 1032 1712 404 1389 272 247 198 390 441 350 774 862 634 1181 1637 2514 Wait 4095 | 2 118 30 2 14 65 30 31 3 170 7 10 65 603 7 7 99 20 116 . 2 132 172 647 877 866 Move 13077 | 54 768 491 282 339 288 276 182 316 478 1006 1565 315 706 230 228 95 346 284 337 754 635 419 482 702 1499 Hop . | . . . . . . . . . . . . . . . . . . . . . . . . . . Pick Up 101 | 8 22 5 1 3 6 3 6 1 1 6 8 . 6 1 . . . 7 . 1 2 1 3 3 7 Fast Attach 71 | 5 5 5 5 1 5 2 2 . 1 1 23 1 2 . 1 1 1 2 . . 4 . 2 1 1 Attach 39 | 1 1 1 . . 2 . 2 . 4 2 9 . 4 . . . . 1 . 1 . . . 2 9 Detach 24 | . . . . . 1 . . . . 2 6 . 4 1 . . . 1 . . 1 . . 2 6 Swap 77 | . 8 3 . 2 6 2 1 2 11 4 18 4 2 2 . . . 1 . . 3 1 2 4 1 Drop 169 | . 21 9 6 6 9 5 6 1 1 3 31 1 12 . 1 3 1 9 . . 8 . 15 11 10 Fire 598 | 9 60 28 . 3 4 13 8 8 33 . 35 18 48 17 10 . 22 20 12 15 17 40 30 35 113 Melee 16 | . . . . . 5 4 . . 3 1 3 . . . . . . . . . . . . . . Ram 2 | . . 2 . . . . . . . . . . . . . . . . . . . . . . . Kick 1 | . . . . . . . . . . . . . 1 . . . . . . . . . . . . Crush 10 | . 8 . . . . 2 . . . . . . . . . . . . . . . . . . . Escape Stasis 6 | . . . . . . . . . . . . . 1 1 . . . . 1 1 . . . . 2 Rewire 89 | . . . . . . . . . 11 . 4 . . 13 . . . . . . 60 1 . . . Trap . | . . . . . . . . . . . . . . . . . . . . . . . . . . Miscellaneous . | . . . . . . . . . . . . . . . . . . . . . . . . . . Route ------- -11/Junkyard -10/Materials (discovered 4 exits: [*Mat x3] / [*Min]) -10/Mines (discovered 2 exits: [*Mat] / *Exi) -10/Exiles -9/Mines -8/Materials (discovered 2 exits: Fac / *Sto) -8/Storage -7/Factory -7/Lower Caves -7/Lower Caves -7/Zion (discovered 2 exits: *Dee / [*Pro]) -7/Deep Caves -6/Proximity Caves -6/Factory (discovered 3 exits: *Fac x2 / [*Low]) -6/Lower Caves -6/Lower Caves -6/Data Miner -5/Proximity Caves -5/Factory (discovered 2 exits: *Upp / Ext) -5/Upper Caves -5/Upper Caves (discovered 2 exits: *Fac / *War) -5/Warlord -4/Proximity Caves -4/Factory -3/Research -2/Research (discovered 1 exit: *Qua) History --------- Turn | Location | Event 14 | -11/Junkyard | Discovered new exit (range 15) 122 | -11/Junkyard | Entered Materials 300 | -10/Materials | Build established: Mutant 525 | -10/Materials | Discovered new exit (range 15) 1038 | -10/Materials | Discovered new exit (range 5) 1444 | -10/Materials | Discovered new exit (range 13) 1646 | -10/Materials | Discovered new exit (range 16) 1705 | -10/Materials | Entered Mines 2052 | -10/Mines | Learned location of 1 exit from Materials 2100 | -10/Mines | Learned location of Zion (-7) 2127 | -10/Mines | Assisted by bots powering up and referring to "LRC-V3" 2151 | -10/Mines | A weapon hastily lodged in a ceiling crevice suddenly fell to the ground 2172 | -10/Mines | Discovered new exit (range 9) 2389 | -10/Mines | Deemed a non-threat by the Exiles lab entrance 2389 | -10/Mines | Discovered new exit (range 5) 2397 | -10/Mines | Entered Exiles 2397 | -10/Exiles | Accompanied by 2 allies 2443 | -10/Exiles | Met 8R-AWN 2475 | -10/Exiles | Met EX-HEX 2534 | -10/Exiles | Met EX-BIN 2555 | -10/Exiles | Aligned with FarCom system 2557 | -10/Exiles | Given EX-Vault access code 2603 | -10/Exiles | Opened EX-Vault 2613 | -10/Exiles | Found Prototype Device 2613 | -10/Exiles | Identified Trap Reconfigurator 2630 | -10/Exiles | Found Prototype Special Weapon 2630 | -10/Exiles | Identified Field Lobotomy Kit 2681 | -10/Exiles | Warned to stay clear of 0b10 Research branches 2734 | -10/Exiles | Met EX-DEC 2932 | -10/Exiles | Discovered new exit (range 10) 2947 | -10/Exiles | Left Exiles lab with Field Lobotomy Kit 2947 | -10/Exiles | Entered Mines 2947 | -9/Mines | Accompanied by 2 allies 2969 | -9/Mines | Met a Derelict shopkeep closing up shop 3183 | -9/Mines | Found a hidden stash of uninstalled traps 3274 | -9/Mines | Learned 4 Materials zone layouts 3437 | -9/Mines | Discovered new exit (range 7) 3623 | -9/Mines | Entered Materials 3623 | -8/Materials | Evolved 4 slots: Utility x4 3624 | -8/Materials | Identified exit to Factory 3625 | -8/Materials | Identified exit to Storage 3923 | -8/Materials | Build established: Scavenger-Mutant 4302 | -8/Materials | Entered Storage 4326 | -8/Storage | Build established: Mutant 4642 | -8/Storage | Garrison activated, responded to threat 4824 | -8/Storage | Discovered exit to Factory (range 10) 4839 | -8/Storage | Entered Factory 4839 | -7/Factory | Evolved 2 slots: Utility x1, Weapon x1 5090 | -7/Factory | Discovered new exit (range 7) 5120 | -7/Factory | Identified exit to Lower Caves 5193 | -7/Factory | Garrison activated, responded to threat 5245 | -7/Factory | Entered Lower Caves 5279 | -7/Lower Caves | Build established: Tank 5574 | -7/Lower Caves | Encountered a Warlord checkpoint 5592 | -7/Lower Caves | Learned location of Extension (-5) 5599 | -7/Lower Caves | Learned Factory stockpile data 5824 | -7/Lower Caves | Discovered new exit (range 8) 5838 | -7/Lower Caves | Identified exit to Lower Caves 5941 | -7/Lower Caves | Entered another Lower Caves area 6457 | -7/Lower Caves | Build established: Scavenger-Tank 7001 | -7/Lower Caves | Encountered a Warlord checkpoint 7029 | -7/Lower Caves | Identified exit to Zion 7038 | -7/Lower Caves | Attracted the attention of an 0b10 outpost 7101 | -7/Lower Caves | Lost 4 parts (1n2u1w) 7238 | -7/Lower Caves | Entered Zion 7238 | -7/Zion | Accompanied by 2 allies 7253 | -7/Zion | Acquired unknown access codes intercepted by a Zionite 7339 | -7/Zion | Discovered new exit (range 15) 7378 | -7/Zion | Build established: Tank 7387 | -7/Zion | Given the Hacking Drone Bay 7635 | -7/Zion | Given A8's code to call for help 7649 | -7/Zion | Learned location of 1 exit from Factory 7767 | -7/Zion | Gained Derelict followers 7953 | -7/Zion | Found Prototype Special Weapon 7956 | -7/Zion | Found Prototype Special Weapon 7960 | -7/Zion | Identified RU-N14's Throwing Claymores (x2) 7970 | -7/Zion | Found RU-N14's Throwing Claymores 7973 | -7/Zion | Found RU-N14's Throwing Claymores 8082 | -7/Zion | Received a hallucinogenic algorithm 8248 | -7/Zion | Build established: Mutant 9261 | -7/Zion | Opened final containment barrier to the Deep Caves 9268 | -7/Zion | Enhanced Grunt warped into view, answering call for help 9272 | -7/Zion | Enhanced Grunt warped into view, answering call for help 9299 | -7/Zion | Discovered new exit (range 3) 9299 | -7/Zion | Saw the warning signs outside the Deep Caves entrance 9309 | -7/Zion | Identified exit to Deep Caves 9321 | -7/Zion | Entered Deep Caves 9321 | -7/Deep Caves | Accompanied by 7 allies 9767 | -7/Deep Caves | Attacked by Z-Imprinter 9780 | -7/Deep Caves | Allies destroyed Z-Imprinter 9940 | -7/Deep Caves | Z-Facility disabled 9990 | -7/Deep Caves | Found Prototype Protection 9990 | -7/Deep Caves | Identified Zio. Weapon Casing 9994 | -7/Deep Caves | Found Zio. Weapon Casing 10029 | -7/Deep Caves | Found Prototype Device 10029 | -7/Deep Caves | Identified Exp. Thermal Shield 10118 | -7/Deep Caves | Build established: Scavenger-Mutant 10130 | -7/Deep Caves | Found Prototype Protection 10130 | -7/Deep Caves | Identified Zio. Heavy Carapace 10356 | -7/Deep Caves | Found Zio. Weapon Casing 11194 | -7/Deep Caves | Spotted as-01643 11209 | -7/Deep Caves | Destroyed as-01643 11266 | -7/Deep Caves | Triggered Deep Caves wall 11266 | -7/Deep Caves | Spotted AS-92935 11266 | -7/Deep Caves | Spotted AS-91784 11279 | -7/Deep Caves | Destroyed AS-91784 11279 | -7/Deep Caves | Destroyed AS-92935 11280 | -7/Deep Caves | Spotted as-45813 11295 | -7/Deep Caves | Destroyed as-45813 11325 | -7/Deep Caves | Destroyed 36 combat bots 11327 | -7/Deep Caves | Lost 3 parts (2n1u) 11348 | -7/Deep Caves | Found GOLEM Unit 11505 | -7/Deep Caves | Found Prototype Energy Cannon 11505 | -7/Deep Caves | Identified YOLO Cannon 11611 | -7/Deep Caves | Exposed GOLEM chamber 11616 | -7/Deep Caves | Found GOLEM Unit 11622 | -7/Deep Caves | Found GOLEM Unit 12679 | -7/Deep Caves | Found GOLEM Unit 12823 | -7/Deep Caves | Discovered new exit (range 9) 12839 | -7/Deep Caves | Entered Proximity Caves 12854 | -6/Proximity Caves | Attracted the attention of an 0b10 checkpoint 12952 | -6/Proximity Caves | Build established: Scavenger-Tank 13022 | -6/Proximity Caves | Spotter reported a threat 13053 | -6/Proximity Caves | Spotter reported a threat 13121 | -6/Proximity Caves | Learned Factory security intel 13298 | -6/Proximity Caves | Learned Factory non-interactive machine intel 13339 | -6/Proximity Caves | Spotter reported a threat 13543 | -6/Proximity Caves | Discovered new exit (range 6) 13573 | -6/Proximity Caves | Spotter reported a threat 13598 | -6/Proximity Caves | Entered Factory 13598 | -6/Factory | Evolved 2 slots: Power x1, Utility x1 13599 | -6/Factory | Identified exit to Factory 13602 | -6/Factory | Loaded intel: 224 non-interactive machine locations 13919 | -6/Factory | Crushed by falling debris 14174 | -6/Factory | Build established: Scavenger-Mutant 14238 | -6/Factory | Discovered new exit (range 20) 14560 | -6/Factory | Build established: Golem 15310 | -6/Factory | Discovered exit to Factory (range 8) 15674 | -6/Factory | Entered Lower Caves 15770 | -6/Lower Caves | Attracted the attention of an 0b10 outpost 15835 | -6/Lower Caves | Destroyed 7 combat bots 16061 | -6/Lower Caves | Crushed by falling debris 16155 | -6/Lower Caves | Discovered new exit (range 7) 16166 | -6/Lower Caves | Entered another Lower Caves area 16166 | -6/Lower Caves | Accompanied by 2 allies 16598 | -6/Lower Caves | Discovered new exit (range 5) 16614 | -6/Lower Caves | Entered Data Miner 16614 | -6/Data Miner | Accompanied by 1 ally 16616 | -6/Data Miner | Discovered new exit (range 6) 16639 | -6/Data Miner | Met Data Miner 16686 | -6/Data Miner | Learned location of Section 7 (-2) 16686 | -6/Data Miner | Acquired the access code to Warlord's prototype stash 16713 | -6/Data Miner | Received God Mode back door access code from Data Miner 16887 | -6/Data Miner | Entered Proximity Caves 16887 | -5/Proximity Caves | Accompanied by 1 ally 17001 | -5/Proximity Caves | Escorted by Enhanced Grunt 17258 | -5/Proximity Caves | Spotted B-75 Beast 17270 | -5/Proximity Caves | Destroyed B-75 Beast 17314 | -5/Proximity Caves | Attracted the attention of an 0b10 checkpoint 17569 | -5/Proximity Caves | Discovered exit to Factory (range 11) 17598 | -5/Proximity Caves | Entered Factory 17598 | -5/Factory | Accompanied by 2 allies 17598 | -5/Factory | Evolved 2 slots: Utility x2 17599 | -5/Factory | Identified exit to Extension 17818 | -5/Factory | Garrison activated, responded to threat 18130 | -5/Factory | Discovered new exit (range 10) 18353 | -5/Factory | Identified exit to Upper Caves 18356 | -5/Factory | Entered Upper Caves 18674 | -5/Upper Caves | Spotted B-75 Beast 18828 | -5/Upper Caves | Crushed by falling debris 19059 | -5/Upper Caves | Discovered new exit (range 12) 19082 | -5/Upper Caves | Identified exit to Upper Caves 19090 | -5/Upper Caves | Entered another Upper Caves area 19179 | -5/Upper Caves | Discovered new exit (range 6) 19191 | -5/Upper Caves | Identified exit to Factory 19454 | -5/Upper Caves | Spotted B-75 Beast 20013 | -5/Upper Caves | Crushed by falling debris 20098 | -5/Upper Caves | Learned 4 Factory zone layouts 20424 | -5/Upper Caves | Learned Factory stockpile data 20676 | -5/Upper Caves | Discovered new exit (range 16) 20710 | -5/Upper Caves | Entered Warlord 20844 | -5/Warlord | System corruption cleaned by Quarantine Array 21336 | -5/Warlord | Visited the Vortex Lab 21345 | -5/Warlord | Warlord's base attacked by MAIN.C 21607 | -5/Warlord | Met Warlord 21628 | -5/Warlord | Opened Warlord's prototype stash 21644 | -5/Warlord | Found Prototype Hackware 21665 | -5/Warlord | Found Prototype Device 21665 | -5/Warlord | Identified Exp. Cloaking Device 21676 | -5/Warlord | Found Prototype Device 21676 | -5/Warlord | Identified System Purifier 21695 | -5/Warlord | Warlord forces counterattacked 21804 | -5/Warlord | Spotted Executioner 22020 | -5/Warlord | Warlord base infiltrated, sounded retreat 22021 | -5/Warlord | Enhanced Grunt warped into view 22021 | -5/Warlord | Enhanced Grunt warped into view 22021 | -5/Warlord | Enhanced Grunt warped into view 22021 | -5/Warlord | Enhanced Demolisher warped into view 22021 | -5/Warlord | Enhanced Demolisher warped into view 22021 | -5/Warlord | Enhanced Demolisher warped into view 22025 | -5/Warlord | Spotted Striker 22116 | -5/Warlord | Spotted Executioner 22141 | -5/Warlord | Spotted B-86 Titan 22142 | -5/Warlord | Spotted Striker 22155 | -5/Warlord | Spotted Striker 22157 | -5/Warlord | Destroyed Striker 22179 | -5/Warlord | Spotted Striker 22190 | -5/Warlord | Spotted Executioner 22191 | -5/Warlord | Spotted Striker 22252 | -5/Warlord | Spotted B-86 Titan 22256 | -5/Warlord | Spotted B-75 Beast 22256 | -5/Warlord | Spotted Striker 22257 | -5/Warlord | Discovered new exit (range 20) 22297 | -5/Warlord | Entered Proximity Caves 22339 | -4/Proximity Caves | Spotted B-86 Titan 22361 | -4/Proximity Caves | Destroyed B-86 Titan 22903 | -4/Proximity Caves | Learned Research non-interactive machine intel 22935 | -4/Proximity Caves | Learned location of 1 exit from Upper Caves 23369 | -4/Proximity Caves | Discovered exit to Factory (range 14) 23413 | -4/Proximity Caves | Learned location of Testing (-3) 23444 | -4/Proximity Caves | Entered Factory 23444 | -4/Factory | Evolved 2 slots: Utility x2 24605 | -4/Factory | Discovered new exit (range 19) 25091 | -4/Factory | Entered Research 25091 | -3/Research | Evolved 2 slots: Utility x2 25092 | -3/Research | Loaded intel: 85 non-interactive machine locations 25452 | -3/Research | Discovered new exit (range 14) 26203 | -3/Research | Identified System Mapper 26204 | -3/Research | System Mapper fried by hacking feedback 26697 | -3/Research | Identified exit to Research 27346 | -3/Research | Entered another Research area 27346 | -2/Research | Warlord forces began assault on 0b10 27346 | -2/Research | Evolved 2 slots: Utility x2 27456 | -2/Research | Research machine network offline 27581 | -2/Research | Met up with Warlord 27718 | -2/Research | Borebot progress halted 27879 | -2/Research | Spotted Executioner 27880 | -2/Research | Spotted Executioner 27892 | -2/Research | Spotted Executioner 27923 | -2/Research | Spotted Striker 27930 | -2/Research | Borebot progress halted 27931 | -2/Research | Destroyed Striker 28347 | -2/Research | Warlord invited to help at Command 28348 | -2/Research | Crushed by falling debris 28360 | -2/Research | Spotted Striker 28400 | -2/Research | Spotted Striker 28407 | -2/Research | Spotted Executioner 28415 | -2/Research | Destroyed Executioner 28415 | -2/Research | Spotted Striker 28419 | -2/Research | Spotted Executioner 28507 | -2/Research | Spotted Striker 28693 | -2/Research | Discovered new exit (range 4) 28698 | -2/Research | Identified exit to Quarantine 28731 | -2/Research | Build established: Mutant 28804 | -2/Research | Spotted Striker 28806 | -2/Research | Spotted Striker 28806 | -2/Research | Assimilated Striker with FLK Orb 28811 | -2/Research | Assimilated Striker with FLK Orb 28814 | -2/Research | Assimilated C-30 ARC with FLK Orb 29081 | -2/Research | Borebot progress halted 29178 | -2/Research | Spotted Striker 29181 | -2/Research | Spotted Striker 29182 | -2/Research | Spotted Striker 29183 | -2/Research | Assimilated Striker with FLK Orb 29232 | -2/Research | Destroyed Striker 29235 | -2/Research | Destroyed Striker 29296 | -2/Research | Spotted Striker 29431 | -2/Research | Spotted Striker 29434 | -2/Research | Spotted Executioner 29436 | -2/Research | Spotted Striker 29445 | -2/Research | Destroyed Striker 29475 | -2/Research | Destroyed Striker 29567 | -2/Research | Spotted Executioner 29573 | -2/Research | Spotted Executioner 29580 | -2/Research | Destroyed Executioner 29632 | -2/Research | Destroyed Executioner 29653 | -2/Research | Destroyed 7 combat bots 29657 | -2/Research | Lost 8 parts (1p1n4u2w) 29727 | -2/Research | Build established: Golem 30570 | -2/Research | Spotted Striker 30580 | -2/Research | Destroyed Striker 30636 | -2/Research | Spotted Striker 30637 | -2/Research | Destroyed Striker 30664 | -2/Research | Spotted Striker 30706 | -2/Research | Spotted Executioner 30749 | -2/Research | Spotted Striker 30789 | -2/Research | Spotted Executioner 30789 | -2/Research | Spotted Executioner 30807 | -2/Research | Spotted Striker 30812 | -2/Research | Spotted Striker 30911 | -2/Research | Spotted Executioner 30928 | -2/Research | Spotted Striker 30930 | -2/Research | Destroyed Executioner 30934 | -2/Research | Destroyed Striker 30937 | -2/Research | Spotted Striker 30959 | -2/Research | Destroyed Striker 30977 | -2/Research | Spotted Striker 30979 | -2/Research | Spotted Striker 30984 | -2/Research | Destroyed Striker 30993 | -2/Research | Crushed by falling debris 30994 | -2/Research | Spotted Striker 31008 | -2/Research | Crushed by falling debris 31011 | -2/Research | Core integrity fell below 50% 31014 | -2/Research | Destroyed Striker 31014 | -2/Research | Destroyed Striker 31057 | -2/Research | Released all parts (7) 31058 | -2/Research | Core integrity fell below 20% 31087 | -2/Research | Lost 17 parts (1p2n11u3w) 31127 | -2/Research | Destroyed by H-88 Terminator with Heavy Machine Gun Last Messages --------------- 31057_ Released Asb. Biocell Array. 31057_ Released Asb. Flux Generator. 31058_ Dropped Lyr. Heavy Armor Plating. 31058_ Penetrated by Slug. 31058_ Acquired GOLEM Unit. 31059_ Penetrated by Slug. 31060_ The unstable cave ceiling collapses. 31060_ Lyr. Heavy Armor Plating crushed. 31063_ Acquired 20 matter. 31065_ The unstable cave ceiling collapses. 31065_ Adv. Cooling System crushed. 31067_ System corrupted: Component data lost. 31074_ The unstable cave ceiling collapses. 31078_ DS-L3E(B) activates siege mode. 31082_ GOLEM Unit beginning Asb. Alloy Leg integration. 31100_ System corrupted: Energy discharge (-22). 31118_ Penetrated by Slug. 31119_ System corrupted: Heat flow error (+192). 31121_ Penetrated by Slug. 31127_ Slug penetrates Earth. Map ----- +----------------------------------------------------+ | ????# ### ## "" | | ????# ##?# ## "" | | ????# ##??## ### "" | | ?####+######### #?? "" | | ?# + #???? | | ?# # #?????? | | ?# ! # ######## | | ?# ! # | | ?# # | | ?############## % | | ???????????######"####### | | ?########### # !%!%!#**# | | " =!*[=!%=% | | " *=!!%!== | | " !![%[!=%* | | ############## =%==#%[! | | ?????????????# ![[ ! | | ?????????????#! !]! !! | | ?????????????# ! %! | | ?????????????# # | | ?????????????########## % | | ????????????????????##" | | ????????????????##### " !% | | ????????????????? !%* | | ###### ########## # ! | | <@ *% | | < % | | < hh | | ############### # | | ?????????????# ### | | ?????????????##???### | | ??????????????????????#### | | ????????????????????### | | ????????????????# * %=! | | ???########### %%=|%% | | " %=%=|!|%%|% | | " =|%=[=!! | | " %%%%%*!=!|! | | ???############= ==* *%%%% | | ??????????????? %[=%!%!# | | ???????????????? %!#""=*## | | ???????????????? = ""%!*| | | ????????????????# "# | | ????????????????# ## | | ???????????????## ## | | ???????????????# + | | ???????????????# # | | ???????????????# + | | ???????????????+%[ # | | ???????????????#= # | +----------------------------------------------------+ Best States ------------- Heat Dissipation 122 Energy Generation 45 Energy Capacity 2600 Matter Stores 500 Matter Capacity 500 Sight Range 22 Terrain Scan Range 20 Terrain Scan Density 210 Additional Mass Support 20 Armor Coverage 925 Resistance: KI 15 Resistance: TH 30 Resistance: EX 15 Resistance: EM 15 Resistance: I 15 Resistance: S 15 Resistance: P 15 Weapon Shielding 100 Phase Shifting 8 Evasion (%) 58 Targeting Accuracy 8 Core Analysis 8 Recoil Reduction 6 Particle Charging 25 Offensive Hacking 14 Defensive Hacking 10 Item Schematics ----------------- Hcp. Storage Unit | -8/Storage | Hacked Battle Rifle | -7/Zion | Free Slug Cannon | -7/Zion | Free Power Maul | -7/Zion | Archive Hyp. Gauss Rifle | -7/Zion | Archive Mak. Axe | -7/Zion | Archive System Guard | -7/Zion | Archive Xenon Bombardment Thruster | -7/Zion | Archive Plasma Rifle | -7/Zion | Archive Spear | -7/Zion | Archive Lgt. Angular Momentum Engine | -7/Zion | Archive Gauss Rifle | -7/Zion | Archive Mni. Drone Bay | -7/Zion | Archive Neutrino Core | -7/Zion | Archive Hpw. Shock Rifle | -7/Zion | Archive Kinecellerator | -7/Zion | Archive Ripper | -7/Zion | Archive Adv. Melee Analysis Suite | -7/Zion | Archive Hvy. Mass Driver | -7/Zion | Archive Combat Drone Bay | -6/Data Miner | Free Lgt. Regenerative Plating | -6/Data Miner | Free Enh. Flexi-carbon Leg | -6/Data Miner | Free Prc. Energy Filter | -6/Data Miner | Free Plasma Sword | -6/Data Miner | Free Impulse Thruster | -6/Data Miner | Free Nanoactuators | -6/Data Miner | Free Railgun | -6/Data Miner | Free Adv. Transmission Jammer | -6/Data Miner | Free Adv. Weapon Cycler | -6/Data Miner | Free Robot Schematics ------------------ R-06 Scavenger | -7/Zion | Archive P-60 Hacker | -7/Zion | Archive W-25 Informer | -7/Zion | Archive S-27 Virus | -6/Data Miner | Free Y-54 Guardian | -6/Data Miner | Free E-15 Imp | -6/Data Miner | Free X-77 Beamer | -6/Data Miner | Free A-15 Conveyor | -6/Data Miner | Free Fabricated ------------ Nothing Alien Tech Used ----------------- None Achievements -------------- Sniper Ultimate Loadout Challenges ------------ None Game ------ Seed RemoteSpreadAirjet Manual? 0 Play Time 03:20:49 Cumulative 105.8 hours Start 2023.04.25 @ 20:20:56 End 2023.05.15 @ 19:07:02 Sessions 17 Manual Loads 0 Difficulty Rogue Special Mode None Game No. 151 Rogue 151 Adventurer 0 Explorer 0 Win Type - Total 1 Types 1/0/0/0/0/0/0/0/0 Lore% 57 Gallery% 62 Achievement% 48 Wizard Run 0 Options --------- ASCII 0 Keyboard 0 Movement Numpad Keybinds 0 Fullscreen 1 Font 18/SmallcapsGlow Map View 76x50 Tactical HUD 1 Map Filters NONE Filters NONE Steam 1 RUN: c65f118f-b46a-4065-9378-2169f9896728